{"text_format":"1","workbook":"xlsx","n_sheets":1,"sheets":["Umzugsgutliste DomizilExpress"],"not_rendered":{"charts":0,"images":1,"macros":1,"external_links":0,"defined_names":1,"comments":0,"pivot_tables":0},"unopened":[],"bounds":{"document_bytes":16777216,"sheet_cells":100000,"rows_first":2000,"rows_last":500,"rows_between":2000,"halvings":0,"cell_chars":16384,"cell_head_chars":4096},"cells_cut":0,"cells_raw":0,"read":"whole","date_system":"1900"}

{"sheet":"Umzugsgutliste DomizilExpress","index":0,"n_rows":281,"n_cols":5,"rows_kept":281,"cut":false,"hidden":false,"merged":[[222,2,222,3],[231,2,231,3],[247,1,247,3],[274,1,274,2],[275,1,275,2],[264,1,264,2],[265,1,265,2],[266,1,266,2],[267,1,267,2],[268,1,268,2],[276,1,276,2],[277,1,277,2],[278,1,278,2],[269,1,269,2],[270,1,270,2],[271,1,271,2],[272,1,272,2],[273,1,273,2],[1,1,1,2],[2,1,2,2],[3,1,3,2],[4,1,4,2],[5,1,5,2],[7,1,7,2],[8,1,8,2],[9,1,9,2],[3,3,3,4],[5,3,5,4],[10,0,10,4],[6,1,6,2]]}
[]
["Möbelspediteur:","Domizil Express e.K."]
["Absender:"]
["Beladestelle:"]
[null,"(Bisheriger Wohnort)",null,"Etage"]
["Entladestelle:"]
[null,"(Neuer Wohnort)",null,"Etage"]
["Zeitraum \nUmzugsdatum"]
["Telefon"]
["Email","@"]
["U m z u g s g u t l i s t e"]
["Stück","Gegenstand","RE","Ges. RE","Montage"]
[null,"WOHNZIMMER / ESSZIMMER"]
[0,"Anbauwand b. 38 cm Tiefe je angef. m",8,{"$f":"C14*A14","v":0}]
[0,"Anbauwand ü. 38 cm Tiefe je angef. m",10,{"$f":"C15*A15","v":0}]
[0,"Bilder bis     0,8 m",1,0]
[0,"Bilder, über 0,8 m",2,0]
[0,"Brücke",1,0]
[0,"Bücherregal, zerlegbar je angef. m",4,0]
[0,"Buffet, mit Aufsatz",18,0]
[0,"Buffet, ohne Aufsatz",15,0]
[0,"Deckenlampe",2,0]
[0,"Eckbank, je Sitz",2,0]
[0,"Fernseher",3,0]
[0,"Flügel",20,0]
[0,"Hausbar",5,0]
[0,"Heimorgel",10,0]
[0,"Klavier",15,0]
[0,"Lüster",5,0]
[0,"Musikschrank / Turm",4,0]
[0,"Nähmaschine (Schrank)",4,0]
[0,"Schreibtisch, bis 1,6 m",12,0]
[0,"Schreibtisch, über 1,6 m",17,0]
[0,"Sekretär",12,0]
[0,"Sessel, mit Armlehnen",8,0]
[0,"Sessel, ohne Armlehnen",4,0]
[0,"Sideboard, groß",12,0]
[0,"Sideboard, klein",6,0]
[0,"Sitzlandschaft (Element), je Sitz",4,0]
[0,"Sofa, Couch, Liege, je Sitz",4,0]
[0,"Standuhr",4,0]
[0,"Stehlampe",2,0]
[0,"Stereoanlage (mit Boxen)",4,0]
[0,"Stuhl",2,0]
[0,"Stuhl, mit Armlehnen",3,0]
[0,"Teewagen, nicht zerlegbar",4,0]
[0,"Teppich",3,0]
[0,"Tisch, bis 0,6 m",4,0]
[0,"Tisch, bis 1,0 m",5,0]
[0,"Tisch, bis 1,2 m",6,0]
[0,"Tisch, über 1,2 m",8,0]
[0,"Vitrine (Glasschrank)",10,0]
[0,"Videorecorder",1,0]
[0,"Wohnz.-Schrank, zerlegb. je angef. m",8,0]
[0,null,{"$f":"IF(A55>0,\"RE werden von uns eingetragen\",\"- LEER -\")","v":"- LEER -"},0]
[0,"Umzugskarton, bis   80 Liter",1,0]
[0,"Umzugskarton, über 80 Liter","1,5",0]
[null,"Zwischensumme",null,{"$f":"SUM(D14:D57)","v":0}]
[]
[null,"ARBEITSZIMMER"]
[0,"Aktenschrank, je angef. m",8,{"$f":"C61*A61","v":0}]
[0,"Brücke",1,{"$f":"C62*A62","v":0}]
[0,"Bücherregal, zerlegb. je angef. m",4,0]
[0,"Bücherregal, nicht zerlegb. je angef. m",12,0]
[0,"Computer: PC-EDV-Anlage",5,0]
[0,"Deckenlampe",2,0]
[0,"Schreibmaschine",1,0]
[0,"Schreibtisch, bis 1,6 m",12,0]
[0,"Schreibtisch, über 1,6 m",17,0]
[0,"Schreibtischcontainer",3,0]
[0,"Schreibtischstuhl",3,0]
[0,"Sessel, mit Armlehnen",8,0]
[0,"Sessel, ohne Armlehnen",4,0]
[0,"Stehlampe",2,0]
[0,"Teppich",3,0]
[0,"Tisch, bis 0,6 m",4,0]
[0,"Tisch, bis 1,0 m",5,0]
[0,"Tisch, bis 1,2 m",6,0]
[0,"Tisch, über 1,2 m",8,0]
[0,"Tischkopierer",5,0]
[0,"Winkelkombination",14,0]
[0,null,{"$f":"IF(A82>0,\"RE werden von uns eingetragen\",\"- LEER -\")","v":"- LEER -"},0]
[0,null,{"$f":"IF(A83>0,\"RE werden von uns eingetragen\",\"- LEER -\")","v":"- LEER -"},0]
[0,"Umzugskarton, bis   80 Liter",1,0]
[0,"Umzugskarton, über 80 Liter","1,5",0]
[null,"Zwischensumme",null,{"$f":"SUM(D61:D85)","v":0}]
[]
[null,"KINDERZIMMER/ STUDIO"]
[0,"Anbauwand, b. 38 cm Tiefe, je angef. m",8,{"$f":"C89*A89","v":0}]
[0,"Anbauwand, ü. 38 cm Tiefe, je angel. m",10,{"$f":"C90*A90","v":0}]
[0,"Bett: Einzelbett, komplett",10,0]
[0,"Bett: Etagenbett, komplett",16,0]
[0,"Bett: Kinderbett, komplett",5,0]
[0,"Bettzeug, je Betteinheit",3,0]
[0,"Brücke",1,0]
[0,"Deckenlampe",2,0]
[0,"Kommode",7,0]
[0,"Laufgitter",1,0]
[0,"Nachttisch",2,0]
[0,"Schrank, bis 2 Türen, nicht zerlegbar",15,0]
[0,"Schrank, zerlegbar, je angef. m",8,0]
[0,"Schreibpult",7,0]
[0,"Spielzeugkiste",4,0]
[0,"Spielzeug-Plastik-/Holzbehalter",1,0]
[0,"Stuhl / Hocker",2,0]
[0,"Teppich",3,0]
[0,"Tisch, bis 0,6 m",4,0]
[0,"Tisch, bis 1,0 m",5,0]
[0,"Tisch, bis 1,2 m",6,0]
[0,"Tisch, über 1,2 m",8,0]
[0,"Kleiderbehältnis",6,0]
[0,null,{"$f":"IF(A112>0,\"RE werden von uns eingetragen\",\"- LEER -\")","v":"- LEER -"},0]
[0,"Umzugskarton, bis   80 Liter",1,0]
[0,"Umzugskarton, über 80 Liter","1,5",0]
[null,"Zwischensumme",null,{"$f":"SUM(D89:D114)","v":0}]
[]
[null,"SCHLAFZIMMER"]
[0,"Bett: Doppelbett, komplett",20,{"$f":"C118*A118","v":0}]
[0,"Bett: Einzelbett, komplett",10,{"$f":"C119*A119","v":0}]
[0,"Bett: Franz. Bett, komplett",15,0]
[0,"Bettumbau",3,0]
[0,"Bettzeug, je Betteinheit",3,0]
[0,"Deckenlampe",2,0]
[0,"Frisierkommode, mit Spiegel",6,0]
[0,"Kommode",7,0]
[0,"Nachttisch",2,0]
[0,"Schrank, bis 2 Türen, nicht zerlegbar",15,0]
[0,"Schrank, zerlegbar, je angef m",8,0]
[0,"Spiegel, über 0,8 m",1,0]
[0,"Stuhl, Hocker",2,0]
[0,"Wäschetruhe",3,0]
[0,null,{"$f":"IF(A132>0,\"RE werden von uns eingetragen\",\"- LEER -\")","v":"- LEER -"},0]
[0,null,{"$f":"IF(A133>0,\"RE werden von uns eingetragen\",\"- LEER -\")","v":"- LEER -"},0]
[0,"Kleiderbehältnis",6,{"$f":"C134*A134","v":0}]
[0,"Umzugskarton, bis   80 Liter",1,{"$f":"C135*A135","v":0}]
[0,"Umzugskarton, über 80 Liter","1,5",0]
[null,"Zwischensumme",null,{"$f":"SUM(D118:D136)","v":0}]
[]
[null,"KÜCHE"]
[0,"Arbeitsplatte, nicht unterb., je angef. m",1,{"$f":"C140*A140","v":0}]
[0,"Besenschrank",6,0]
[0,"Buffet, mit Aufsatz",18,0]
[0,"Deckenlampe",2,0]
[0,"Eckbank, je Sitz",2,0]
[0,"Geschirrspülmaschine",5,0]
[0,"Herd",5,0]
[0,"Küchenschrank-Oberteil, je Tür",4,0]
[0,"Küchenschrank-Unterteil, je Tur",4,0]
[0,"Kühlschrank / Truhe, bis   120 Liter",5,0]
[0,"Kühlschrank / Truhe, über 120 Liter",10,0]
[0,"Mikrowelle",2,0]
[0,"Stuhl",2,0]
[0,"Teppich",3,0]
[0,"Tisch, bis 0,6 m",4,0]
[0,"Tisch, bis 1,0 m",5,0]
[0,"Tisch, bis 1,2 m",6,0]
[0,"Tisch, über 1,2 m",8,0]
[0,"Waschmaschine /Trockner",5,0]
[0,null,{"$f":"IF(A159>0,\"RE werden von uns eingetragen\",\"- LEER -\")","v":"- LEER -"},0]
[0,"Umzugskarton, bis   80 Liter",1,0]
[0,"Umzugskarton, über 80 Liter","1,5",0]
[null,"Zwischensumme",null,{"$f":"SUM(D140:D161)","v":0}]
[]
[null,"DIELE / BAD"]
[0,"Deckenlampe",2,{"$f":"C165*A165","v":0}]
[0,"Hut-/ Kleiderablage",2,{"$f":"C166*A166","v":0}]
[0,"Schuhschrank",4,0]
[0,"Stuhl / Hocker",2,0]
[0,"Teppich",3,0]
[0,"Toilettenschrank",2,0]
[0,"Truhe, Kommode",7,0]
[0,"Wäschekorb/-puff",2,0]
[0,null,{"$f":"IF(A173>0,\"RE werden von uns eingetragen\",\"- LEER -\")","v":"- LEER -"},0]
[0,null,{"$f":"IF(A174>0,\"RE werden von uns eingetragen\",\"- LEER -\")","v":"- LEER -"},0]
[0,"Umzugskarton, bis   80 Liter",1,{"$f":"C175*A175","v":0}]
[0,"Umzugskarton, über 80 Liter","1,5",0]
[null,"Zwischensumme",null,{"$f":"SUM(D166:D176)","v":0}]
[]
[null,"KELLER / SPEICHER / GARTEN"]
[0,"Autoreifen",1,{"$f":"C180*A180","v":0}]
[0,"Blumenkübel / Kasten",1,{"$f":"C181*A181","v":0}]
[0,"Bügelbrett",1,0]
[0,"Dreirad / Kinderrad",2,0]
[0,"Fahrrad / Moped",5,0]
[0,"Gartengeräte",2,0]
[0,"Gartengrill",4,0]
[0,"Kinderwagen",5,0]
[0,"Klapptisch / Klappstuhl",2,0]
[0,"Koffer",1,0]
[0,"Leiter, je angefangene m",1,0]
[0,"Motorrad",8,0]
[0,"Mülltonne",2,0]
[0,"Rasenmäher, Hand",2,0]
[0,"Rasenmäher, Motor",5,0]
[0,"Regal, zerlegbar, je angef, m",4,0]
[0,"Schlitten",2,0]
[0,"Schubkarre",4,0]
[0,"Ski (Paar mit Stöcken)",2,0]
[0,"Sonnenbank",10,0]
[0,"Sonnenschirm",2,0]
[0,"Staubsauger",1,0]
[0,"Surfbrett komplett",8,0]
[0,"Tischtennisplatte",3,0]
[0,"Werkbank, zerlegbar",4,0]
[0,"Werkzeugkoffer",1,0]
[0,"Werkzeugschrank",2,0]
[0,null,{"$f":"IF(A207>0,\"RE werden von uns eingetragen\",\"- LEER -\")","v":"- LEER -"},0]
[0,null,{"$f":"IF(A208>0,\"RE werden von uns eingetragen\",\"- LEER -\")","v":"- LEER -"},0]
[0,null,"- LEER -",0]
[0,null,"- LEER -",0]
[0,null,"- LEER -",0]
[0,null,"- LEER -",0]
[0,null,"- LEER -",0]
[0,null,"- LEER -",0]
[0,null,"- LEER -",0]
[0,null,"- LEER -",0]
[0,null,"- LEER -",0]
[0,"Umzugskarton, bis   80 Liter",1,{"$f":"C218*A218","v":0}]
[0,"Umzugskarton, über 80 Liter","1,5",0]
[null,"Zwischensumme",null,{"$f":"SUM(D180:D219)","v":0}]
[]
[]
[null,"Beladestelle","Bitte entsprechendes Feld\nanklicken und auswählen"]
[null,"Parkzone einrichten"]
[null,"Laufweg ca."]
[null,"Ist ein Aufzug vorhanden"]
[null,"Küchenabbau"]
[null,"Verpackungsmaterial"]
[]
[]
[]
[null,"Entladestelle","Bitte entsprechendes Feld\nanklicken und auswählen"]
[null,"Parkzone einrichten"]
[null,"Laufweg ca."]
[null,"Ist ein Aufzug vorhanden"]
[null,"Küchenaufbau"]
[]
[]
[null,"TV-Verpackung / Miete",0,"Stück"]
[null,"Packpapier ca.",0,"KG"]
[null,"Luftpolsterfolie",0,"m"]
[null,"Stretchfolie",0,"Rolle(m)"]
[null,"Sofahüllen",0,"Stück"]
[null,"Matratzenhüllen",0,"Stück"]
[null,"Klebeband",0,"Rollen"]
[null,"Fahrradhüllen / Miete",0,"Stück"]
[]
[null,"Text für Sonstiges"]
[]
[]
[]
[]
[]
[]
[]
[]
[]
[]
[]
[]
[]
[]
[]
[null,null,"ZWISCHENSUMMEN"]
[null,"WOHNZIMMER / ESSZIMMER",null,{"$f":"D58","v":0}]
[null,"Eintragungen Freiraum",null,{"$f":"IF(OR(A55<2),CONCATENATE(SUM(A55),\" Posten\"),CONCATENATE(SUM(A55),\" Posten\"))","v":"0 Posten"}]
[null,"ARBEITSZIMMER",null,{"$f":"D86","v":0}]
[null,"Eintragungen Freiraum",null,{"$f":"IF(OR(A82>1,A83>1),CONCATENATE(SUM(A82+A83),\" Posten\"),CONCATENATE(SUM(A82+A83),\" Posten\"))","v":"0 Posten"}]
[null,"KINDERZIMMER/ STUDIO",null,{"$f":"D115","v":0}]
[null,"Eintragungen Freiraum",null,{"$f":"IF(OR(A112<2),CONCATENATE(SUM(A112),\" Posten\"),CONCATENATE(SUM(A112),\" Posten\"))","v":"0 Posten"}]
[null,"SCHLAFZIMMER",null,{"$f":"D137","v":0}]
[null,"Eintragungen Freiraum",null,{"$f":"IF(OR(A132>1,A133>1),CONCATENATE(SUM(A132+A133),\" Posten\"),CONCATENATE(SUM(A132+A133),\" Posten\"))","v":"0 Posten"}]
[null,"KÜCHE",null,{"$f":"D162","v":0}]
[null,"Eintragungen Freiraum",null,{"$f":"IF(OR(A159>1),CONCATENATE(SUM(A159),\" Posten\"),CONCATENATE(SUM(A159),\" Posten\"))","v":"0 Posten"}]
[null,"DIELE / BAD",null,{"$f":"D177","v":0}]
[null,"Eintragungen Freiraum",null,{"$f":"IF(OR(A172>1,A173>1),CONCATENATE(SUM(A172+A173),\" Posten\"),CONCATENATE(SUM(A172+A173),\" Posten\"))","v":"0 Posten"}]
[null,"KELLER / SPEICHER / GARTEN",null,{"$f":"D215","v":0}]
[null,"Eintragungen Freiraum",null,{"$f":"IF(OR(A207>1,A208>1,A209,A210,A211,A212,A213,A214),CONCATENATE(SUM(A207+A208+A209+A210+A211+A212+A213+A214),\" Posten\"),CONCATENATE(SUM(A207+A208+A209+A210+A211+A212+A213+A214),\" Posten\"))","v":"0 Posten"}]
[null,"Diverses",null,{"$f":"D220","v":0}]
[]
[null,null,"GESAMT-SUMME",{"$f":"SUM(D265:D279)","v":0}]